lending/lending_fUSD_20260306
["ID","MTS","AMOUNT","RATE_DAILY","PERIOD"]
[407841532,1772825456124,-151.0,0.000423,120]
[407841533,1772825456134,-151.0,0.000423,120]
[407841534,1772825456145,-154.222734,0.000423,120]
[407841535,1772825456155,-151.0,0.000423,120]
[407841536,1772825456164,-151.0,0.000423,120]
[407841537,1772825456175,-151.0,0.000423,120]
[407841538,1772825456184,-151.0,0.000423,120]
[407841539,1772825456195,-151.0,0.000423,120]
[407841540,1772825456205,-151.0,0.000423,120]
[407841541,1772825456215,-154.536032,0.000423,120]
[407841542,1772825456224,-151.0,0.000423,120]
[407841543,1772825456236,-353.36614651,0.00042427,7]
[407841544,1772825456246,-500.0,0.00042438,120]
[407841545,1772825456257,-500.0,0.00042438,120]
[407841546,1772825456267,-2500.0,0.00042465,120]
[407841547,1772825456276,-2500.0,0.00042465,120]
[407841548,1772825456287,-1285.97357031,0.00042465,120]
[407841549,1772825456297,-746.0,0.00042466,120]
[407841550,1772825456307,-151.0,0.00042493,120]
[407841551,1772825456317,-162.173486,0.00042493,120]
[407841552,1772825456328,-162.173486,0.00042493,120]
[407841553,1772825456338,-162.173486,0.00042493,120]
[407841554,1772825456352,-162.173486,0.00042493,120]
[407841555,1772825456362,-151.0,0.00042493,120]
[407841556,1772825456372,-151.0,0.00042493,120]
[407841557,1772825456382,-151.0,0.00042493,120]
[407841558,1772825456392,-164.808243,0.00042493,120]
[407841559,1772825456403,-160.774024,0.00042493,120]
[407841560,1772825456414,-418.96621,0.00042493,120]
[407841561,1772825456425,-418.96621,0.00042493,120]
[407841562,1772825456436,-209.670155,0.00042493,120]
[407841563,1772825456447,-418.96621,0.00042493,120]
[407841564,1772825456458,-209.670155,0.00042493,120]
[407841565,1772825456468,-418.96621,0.00042493,120]
[407841566,1772825456479,-209.670155,0.00042493,120]
[407841567,1772825456489,-209.670155,0.00042493,120]
[407841568,1772825456499,-151.0,0.00042493,120]
[407841569,1772825456510,-2000.0,0.000425,120]
[407841570,1772825456520,-4805.37460487,0.000425,120]
[407841571,1772825456530,-894.62680469,0.000425,120]
[407841572,1772825456540,-1042.7,0.00042515,30]
[407841573,1772825456551,-174.675152,0.00042527,120]
[407841574,1772825456561,-174.675152,0.00042527,120]
[407841575,1772825456571,-277.980163,0.00042527,15]
[407841576,1772825456582,-174.675152,0.00042527,120]
[407841577,1772825456592,-277.980163,0.00042527,15]
[407841578,1772825456603,-174.675152,0.00042527,120]
[407841579,1772825456614,-277.980163,0.00042527,15]
[407841580,1772825456624,-277.980163,0.00042527,15]
[407841581,1772825456634,-151.0,0.00042527,120]
[407841582,1772825456645,-151.0,0.00042527,120]
[407841583,1772825456656,-151.0,0.00042527,120]
[407841584,1772825456666,-151.0,0.00042527,120]
[407841585,1772825456677,-151.0,0.00042527,120]
[407841586,1772825456687,-170.975285,0.00042527,120]
[407841587,1772825456702,-151.0,0.00042527,2]
[407841588,1772825456713,-151.0,0.00042527,120]
[407841589,1772825456724,-151.0,0.00042527,2]
[407841590,1772825456739,-268.294283,0.00042527,120]
[407841591,1772825456750,-151.0,0.00042527,2]
[407841592,1772825456762,-186.705099,0.00042527,120]
[407841593,1772825456776,-1048.71972246,0.00042527,2]
[407841594,1772825457024,-306.68079331,0.00042527,2]
[407841595,1772825457035,-856.31686265,0.00042527,2]
[407841596,1772825457049,-997.17014279,0.00042527,2]
[407841597,1772825457062,-300.0,0.00042527,2]
[407841598,1772825457072,-1048.71972246,0.00042527,2]
[407841599,1772825457082,-410.61642318,0.00042527,2]
[407841600,1772825457092,-719.49803138,0.00042527,2]
[407841601,1772825457102,-300.0,0.00042527,2]
[407841602,1772825457112,-355.39390733,0.00042527,2]
[407841603,1772825457122,-300.0,0.00042527,2]
[407841604,1772825457132,-380.78852393,0.00042527,2]
[407841605,1772825457142,-1048.71972246,0.00042527,2]
[407841606,1772825457155,-306.68079331,0.00042527,2]
[407841607,1772825457165,-300.0,0.00042527,2]
[407841608,1772825457175,-301.04099642,0.00042527,2]
[407841609,1772825457185,-1868.53914027,0.00042527,2]
[407841610,1772825457196,-301.0233134,0.00042527,2]
[407841611,1772825457206,-301.04636085,0.00042527,2]
[407841612,1772825457216,-307.943616,0.00042527,2]
[407841613,1772825457226,-301.3366208,0.00042527,2]
[407841614,1772825457235,-300.0,0.00042527,2]
[407841615,1772825457245,-300.98948013,0.00042527,2]
[407841616,1772825457256,-300.36223533,0.00042527,2]
[407841617,1772825457265,-300.0,0.00042527,2]
[407841618,1772825457275,-301.46382453,0.00042527,2]
[407841619,1772825457284,-300.0,0.00042527,2]
[407841620,1772825457294,-301.00734927,0.00042527,2]
[407841621,1772825457304,-300.0,0.00042527,2]
[407841622,1772825457315,-521.32670381,0.00042527,2]
[407841623,1772825457324,-300.71995915,0.00042527,2]
[407841624,1772825457333,-300.0,0.00042527,2]
[407841625,1772825457343,-300.0,0.00042527,2]
[407841626,1772825457353,-1048.71972246,0.00042527,2]
[407841627,1772825457363,-306.68079331,0.00042527,2]
[407841628,1772825457373,-300.94596422,0.00042527,2]
[407841629,1772825457383,-856.31686265,0.00042527,2]
[407841630,1772825457393,-1868.53914027,0.00042527,2]
[407841631,1772825457404,-301.1779551,0.00042527,2]
[407841632,1772825457414,-307.943616,0.00042527,2]
[407841633,1772825457424,-300.0,0.00042527,2]
[407841634,1772825457433,-300.0,0.00042527,2]
[407841635,1772825457446,-459.47941262,0.00042527,2]
[407841636,1772825457456,-300.0,0.00042527,2]
[407841637,1772825457466,-300.0,0.00042527,2]
[407841638,1772825457475,-372.20230898,0.00042527,2]
[407841639,1772825457485,-300.36223533,0.00042527,2]
[407841640,1772825457495,-301.00940719,0.00042527,2]
[407841641,1772825457505,-301.12214223,0.00042527,2]
[407841642,1772825457515,-519.71301933,0.00042527,2]
[407841643,1772825457526,-300.0,0.00042527,2]
[407841644,1772825457536,-300.0,0.00042527,2]
[407841645,1772825457546,-300.0,0.00042527,2]
[407841646,1772825457556,-651.71896752,0.00042527,2]
[407841647,1772825457566,-300.0,0.00042527,2]
[407841648,1772825457576,-300.95441166,0.00042527,2]
[407841649,1772825457586,-300.0,0.00042527,2]
[407841650,1772825457596,-1084.42255485,0.00042527,2]
[407841651,1772825457606,-300.0,0.00042527,2]
[407841652,1772825457615,-300.0,0.00042527,2]
[407841653,1772825457625,-300.0,0.00042527,2]
[407841654,1772825457635,-300.93673575,0.00042527,2]
[407841655,1772825457645,-1048.71972246,0.00042527,2]
[407841656,1772825457655,-306.68079331,0.00042527,2]
[407841657,1772825457664,-856.31686265,0.00042527,2]
[407841658,1772825457674,-1868.53914027,0.00042527,2]
[407841659,1772825457683,-307.943616,0.00042527,2]
[407841660,1772825457693,-300.0,0.00042527,2]
[407841661,1772825457702,-301.01024035,0.00042527,2]
[407841662,1772825457712,-459.47941262,0.00042527,2]
[407841663,1772825457721,-300.0,0.00042527,2]
[407841664,1772825457731,-474.05380496,0.00042527,2]
[407841665,1772825457742,-372.20230898,0.00042527,2]
[407841666,1772825457752,-300.0,0.00042527,2]
[407841667,1772825457762,-300.36223533,0.00042527,2]
[407841668,1772825457772,-519.71301933,0.00042527,2]
[407841669,1772825457782,-306.8999554,0.00042527,2]
[407841670,1772825457792,-301.00708898,0.00042527,2]
[407841671,1772825457801,-300.98971168,0.00042527,2]
[407841672,1772825457811,-300.0,0.00042527,2]
[407841673,1772825457821,-300.0,0.00042527,2]
[407841674,1772825457830,-300.0,0.00042527,2]
[407841675,1772825457840,-1084.42255485,0.00042527,2]
[407841676,1772825457850,-300.0,0.00042527,2]
[407841677,1772825457859,-300.0,0.00042527,2]
[407841678,1772825457869,-300.0,0.00042527,2]
[407841679,1772825457879,-1048.71972246,0.00042527,2]
[407841680,1772825457889,-306.68079331,0.00042527,2]
[407841681,1772825457898,-856.31686265,0.00042527,2]
[407841682,1772825457908,-1868.53914027,0.00042527,2]
[407841683,1772825457917,-307.943616,0.00042527,2]
[407841684,1772825457927,-301.97529056,0.00042527,2]
[407841685,1772825457937,-459.47941262,0.00042527,2]
[407841686,1772825457946,-445.41337275,0.00042527,2]
[407841687,1772825457956,-372.20230898,0.00042527,2]
[407841688,1772825457966,-300.0,0.00042527,2]
[407841689,1772825457975,-300.36223533,0.00042527,2]
[407841690,1772825457985,-519.71301933,0.00042527,2]
[407841691,1772825457995,-306.8999554,0.00042527,2]
[407841692,1772825458005,-300.0,0.00042527,2]
[407841693,1772825458014,-300.0,0.00042527,2]
[407841694,1772825458023,-300.23935379,0.00042527,2]
[407841695,1772825458032,-1084.42255485,0.00042527,2]
[407841696,1772825458042,-300.0,0.00042527,2]
[407841697,1772825458051,-300.0,0.00042527,2]
[407841698,1772825458061,-300.000001,0.00042527,2]
[407841699,1772825458072,-1048.71972246,0.00042527,2]
[407841700,1772825458082,-306.68079331,0.00042527,2]
[407841701,1772825458092,-856.31686265,0.00042527,2]
[407841702,1772825458102,-1868.53914027,0.00042527,2]
[407841703,1772825458111,-307.943616,0.00042527,2]
[407841704,1772825458121,-459.47941262,0.00042527,2]
[407841705,1772825458131,-372.20230898,0.00042527,2]
[407841706,1772825458141,-348.61252797,0.00042527,2]
[407841707,1772825458150,-302.32905367,0.00042527,2]
[407841708,1772825458160,-519.71301933,0.00042527,2]
[407841709,1772825458170,-306.8999554,0.00042527,2]
[407841710,1772825458180,-343.96105971,0.00042527,2]
[407841711,1772825458189,-300.0,0.00042527,2]
[407841712,1772825458199,-1084.42255485,0.00042527,2]
[407841713,1772825458210,-300.0,0.00042527,2]
[407841714,1772825458221,-300.0,0.00042527,2]
[407841715,1772825458230,-1048.71972246,0.00042527,2]
[407841716,1772825458240,-306.68079331,0.00042527,2]
[407841717,1772825458249,-856.31686265,0.00042527,2]
[407841718,1772825458259,-1868.53914027,0.00042527,2]
[407841719,1772825458269,-307.943616,0.00042527,2]
[407841720,1772825458278,-459.47941262,0.00042527,2]
[407841721,1772825458287,-372.20230898,0.00042527,2]
[407841722,1772825458297,-519.71301933,0.00042527,2]
[407841723,1772825458307,-306.8999554,0.00042527,2]
[407841724,1772825458319,-300.0,0.00042527,2]
[407841725,1772825458328,-1084.42255485,0.00042527,2]
[407841726,1772825458338,-300.0,0.00042527,2]
[407841727,1772825458348,-300.0,0.00042527,2]
[407841728,1772825458357,-302.13828262,0.00042527,2]
[407841729,1772825458367,-1048.71972246,0.00042527,2]
[407841730,1772825458377,-306.68079331,0.00042527,2]
[407841731,1772825458386,-856.31686265,0.00042527,2]
[407841732,1772825458397,-1933.00131759,0.00042527,2]
[407841733,1772825458408,-307.943616,0.00042527,2]
[407841734,1772825458418,-459.47941262,0.00042527,2]
[407841735,1772825458429,-372.20230898,0.00042527,2]
[407841736,1772825458441,-519.71301933,0.00042527,2]
[407841737,1772825458452,-306.8999554,0.00042527,2]
[407841738,1772825458463,-300.0,0.00042527,2]
[407841739,1772825458473,-1084.42255485,0.00042527,2]
[407841740,1772825458483,-300.0,0.00042527,2]
[407841741,1772825458493,-300.0,0.00042527,2]
[407841742,1772825458504,-1048.71972246,0.00042527,2]
[407841743,1772825458514,-306.68079331,0.00042527,2]
[407841744,1772825458524,-856.31686265,0.00042527,2]
[407841745,1772825458535,-307.943616,0.00042527,2]
[407841746,1772825458545,-459.47941262,0.00042527,2]
[407841747,1772825458554,-372.20230898,0.00042527,2]
[407841748,1772825458564,-519.71301933,0.00042527,2]
[407841749,1772825458573,-306.8999554,0.00042527,2]
[407841750,1772825458583,-300.0,0.00042527,2]
[407841751,1772825458594,-1084.42255485,0.00042527,2]
[407841752,1772825458603,-300.0,0.00042527,2]
[407841753,1772825458613,-300.0,0.00042527,2]
[407841754,1772825458624,-1048.71972246,0.00042527,2]
[407841755,1772825458634,-306.68079331,0.00042527,2]
[407841756,1772825458644,-856.31686265,0.00042527,2]
[407841757,1772825458654,-307.943616,0.00042527,2]
[407841758,1772825458664,-459.47941262,0.00042527,2]
[407841759,1772825458673,-498.85696441,0.00042527,2]
[407841760,1772825458683,-732.67973587,0.00042527,2]
[407841761,1772825458692,-306.8999554,0.00042527,2]
[407841762,1772825458705,-507.11197358,0.00042527,2]
[407841763,1772825458715,-1084.42255485,0.00042527,2]
[407841764,1772825458724,-300.0,0.00042527,2]
[407841765,1772825458734,-300.0,0.00042527,2]
[407841766,1772825458745,-1048.71972246,0.00042527,2]
[407841767,1772825458755,-306.68079331,0.00042527,2]
[407841768,1772825458765,-856.31686265,0.00042527,2]
[407841769,1772825458776,-412.52131136,0.00042527,2]
[407841770,1772825458786,-459.47941262,0.00042527,2]
[407841771,1772825458795,-306.8999554,0.00042527,2]
[407841772,1772825458805,-1084.42255485,0.00042527,2]
[407841773,1772825458815,-456.6598958,0.00042527,2]
[407841774,1772825458826,-300.0,0.00042527,2]
[407841775,1772825458835,-856.31686266,0.00042527,2]
[407841776,1772825458844,-615.52871134,0.00042527,2]
[407841777,1772825458854,-513.84997243,0.00042527,2]
[407841778,1772825458864,-1084.42255485,0.00042527,2]
[407841779,1772825458873,-300.0,0.00042527,2]
[407841780,1772825458883,-847.0,0.00042541,16]
[407841781,1772825458892,-927.81,0.00042546,120]
[407841782,1772825458902,-298.0,0.0004257,120]
[407841783,1772825458911,-298.0,0.0004257,120]
[407841784,1772825458921,-500.0,0.00042575,120]
[407841785,1772825458930,-500.0,0.00042575,120]
[407841786,1772825458940,-1011.93485607,0.00042602,2]
[407841787,1772825458949,-505.73681112,0.00042602,2]
[407841788,1772825458958,-1831.45359464,0.00042661,2]
[407841789,1772825458969,-778.32,0.00042661,120]
[407841790,1772825458978,-2803.0,0.0004268,16]
[407841791,1772825458988,-213.04,0.000427,120]
[407841792,1772825458998,-152.0,0.000427,120]
[407841793,1772825459008,-491.11613673,0.000427,120]
[407841794,1772825459018,-400.01,0.000427,14]
[407841795,1772825459038,-500.0,0.00042712,120]
[407841796,1772825459052,-500.0,0.00042712,120]
[407841797,1772825459065,-79486.90727579,0.0004272,2]
[407841798,1772825459076,-2803.0,0.00042737,16]
[407841799,1772825459087,-746.0,0.0004274,120]
[407841800,1772825459096,-4000.0,0.0004274,14]
[407841801,1772825459106,-900.0,0.0004274,10]
[407841802,1772825459115,-450.0,0.0004274,10]
[407841803,1772825459125,-450.0,0.0004274,10]
[407841804,1772825459134,-453.09695486,0.0004274,10]
[407841805,1772825459143,-614.44737,0.0004274,120]
[407841806,1772825459153,-417.08983456,0.0004274,10]
[407841807,1772825459162,-1535.48572652,0.00042743,7]
[407841808,1772825459172,-155128.05723141,0.00042743,7]
[407841809,1772825459181,-359.65537879,0.00042765,45]
[407841810,1772825459191,-154.0,0.000428,120]
[407841811,1772825459201,-500.0,0.00042849,120]
[407841812,1772825459210,-500.0,0.00042849,120]
[407841813,1772825459220,-190.64,0.000429,47]
[407841814,1772825459229,-200.0,0.000429,24]
[407841815,1772825459238,-500.0,0.00042986,120]
[407841816,1772825459247,-500.0,0.00042986,120]
[407841817,1772825459257,-150.0,0.00042999,2]
[407841818,1772825459267,-1324.7976711,0.00043,15]
[407841819,1772825459276,-393.28545405,0.00043,2]
[407841820,1772825459286,-214.0,0.00043,7]
[407841821,1772825459295,-18947.47829789,0.00043,10]
[407841822,1772825459305,-3963.3325849,0.00043,30]
[407841823,1772825459315,-237.3074631,0.00043,120]
[407841824,1772825459325,-1676.76505803,0.00043,120]
[407841825,1772825459335,-1728.15071473,0.00043,2]
[407841826,1772825459344,-757.69555188,0.00043,10]
[407841827,1772825459354,-298.0,0.00043,120]
[407841828,1772825459364,-746.0,0.00043014,120]
[407841829,1772825459374,-503.71,0.0004303,90]
[407841830,1772825459383,-1279.0,0.00043031,2]
[407841831,1772825459393,-1212.0,0.00043031,2]
[407841832,1772825459459,-922.0,0.00043031,2]
[407841833,1772825459469,-200.0,0.00043068,120]
[407841834,1772825459480,-200.0,0.00043068,120]
[407841835,1772825459489,-200.0,0.00043068,120]
[407841836,1772825459499,-200.0,0.00043068,120]
[407841837,1772825459508,-200.0,0.00043068,120]
[407841838,1772825459518,-250.9,0.00043068,120]
[407841839,1772825459527,-152.0,0.00043069,7]
[407841840,1772825459536,-1341.0,0.00043091,2]
[407841841,1772825459552,-3502.0,0.00043091,2]
[407841842,1772825459562,-500.0,0.00043123,120]
[407841843,1772825459572,-500.0,0.00043123,120]
[407841844,1772825459582,-156.4697347,0.00043127,2]
[407841845,1772825459591,-800.0,0.00043161,16]
[407841846,1772825459601,-800.0,0.00043161,16]
[407841847,1772825459610,-800.0,0.00043161,16]
[407841848,1772825459619,-800.0,0.00043161,16]
[407841849,1772825459629,-800.0,0.00043161,16]
[407841850,1772825459639,-800.0,0.00043161,16]
[407841851,1772825459650,-800.0,0.00043161,16]
[407841852,1772825459659,-800.0,0.00043161,16]
[407841853,1772825459668,-500.0,0.0004317,3]
[407841854,1772825459678,-700.0,0.0004317,3]
[407841855,1772825459687,-150.0,0.000432,27]
[407841856,1772825459700,-150.0,0.000432,70]
[407841857,1772825459710,-672.51,0.000432,120]
[407841858,1772825459720,-800.0,0.00043203,16]
[407841859,1772825459729,-800.0,0.00043203,16]
[407841860,1772825459741,-800.0,0.00043203,16]
[407841861,1772825459751,-800.0,0.00043203,16]
[407841862,1772825459760,-800.0,0.00043203,16]
[407841863,1772825459772,-800.0,0.00043203,16]
[407841864,1772825459781,-800.0,0.00043203,16]
[407841865,1772825459790,-800.0,0.00043203,16]
[407841866,1772825459801,-400630.38660792,0.0004321,120]
[407841867,1772825459812,-1042.7,0.00043233,30]
[407841868,1772825459822,-500.0,0.0004326,120]
[407841869,1772825459832,-500.0,0.0004326,120]
[407841870,1772825459843,-628.17921208,0.00043287,120]
[407841871,1772825459853,-746.0,0.00043288,120]
[407841872,1772825459863,-500.0,0.00043288,60]
[407841873,1772825459873,-500.0,0.00043288,120]
[407841874,1772825459882,-550.0,0.00043288,10]
[407841875,1772825459892,-550.0,0.00043288,10]
[407841876,1772825459902,-515.61,0.000433,14]
[407841877,1772825459914,-2803.0,0.00043377,16]
[407841878,1772825459926,-500.0,0.00043397,120]
[407841879,1772825459941,-500.0,0.00043397,120]
[407841880,1772825459952,-156.4697347,0.00043401,2]
[407841881,1772825459962,-298.0,0.000435,120]
[407841882,1772825459973,-500.0,0.00043534,120]
[407841883,1772825459981,-504.24177542,0.00043534,120]
[407841884,1772825459990,-746.0,0.00043562,120]
[407841885,1772825460000,-785.832644,0.00043562,10]
[407841886,1772825460010,-746.0,0.00043562,120]
[407841887,1772825460020,-152.0,0.000436,120]
[407841888,1772825460031,-196699.0,0.0004365,60]
[407841889,1772825460040,-218.61207107,0.0004366,120]
[407841890,1772825460050,-500.0,0.00043671,120]
[407841891,1772825460059,-156.4697347,0.00043675,2]
[407841892,1772825460069,-154.0,0.000437,120]
[407841893,1772825460079,-994.02291875,0.000437,120]
[407841894,1772825460088,-400.01,0.000437,14]
[407841895,1772825460097,-1000.0,0.000438,30]
[407841896,1772825460107,-546.06874641,0.000438,120]
[407841897,1772825460116,-1806.21329193,0.00043808,120]
[407841898,1772825460125,-758.91083708,0.00043808,120]
[407841899,1772825460135,-205.84040559,0.00043808,120]
[407841900,1772825460145,-151.0,0.00043832,120]
[407841901,1772825460154,-500.0,0.00043835,120]
[407841902,1772825460164,-500.0,0.00043835,120]
[407841903,1772825460173,-500.0,0.00043835,120]
[407841904,1772825460182,-500.0,0.00043835,120]
[407841905,1772825460192,-500.0,0.00043835,120]
[407841906,1772825460201,-498.0,0.00043835,120]
[407841907,1772825460210,-515.82300736,0.00043835,120]
[407841908,1772825460220,-500.0,0.00043835,120]
[407841909,1772825460229,-500.0,0.00043835,120]
[407841910,1772825460238,-431.19033015,0.00043835,120]
[407841911,1772825460248,-687.88,0.00043835,2]
[407841912,1772825460259,-687.88,0.00043835,2]
[407841913,1772825460268,-687.88,0.00043835,2]
[407841914,1772825460277,-687.88,0.00043835,2]
[407841915,1772825460286,-687.88,0.00043835,2]
[407841916,1772825460296,-687.88,0.00043835,2]
[407841917,1772825460305,-687.88,0.00043835,2]
[407841918,1772825460315,-687.88,0.00043835,2]
[407841919,1772825460324,-687.88,0.00043835,2]
[407841920,1772825460333,-687.88,0.00043835,2]
[407841921,1772825460342,-687.88,0.00043835,2]
[407841922,1772825460352,-687.88,0.00043835,2]
[407841923,1772825460361,-687.88,0.00043835,2]
[407841924,1772825460370,-687.88,0.00043835,2]
[407841925,1772825460379,-687.88,0.00043835,2]
[407841926,1772825460389,-687.88,0.00043835,2]
[407841927,1772825460399,-687.88,0.00043835,2]
[407841928,1772825460408,-687.88,0.00043835,2]
[407841929,1772825460417,-687.88,0.00043835,2]
[407841930,1772825460426,-687.88,0.00043835,2]
[407841931,1772825460436,-687.88,0.00043835,2]
[407841932,1772825460445,-687.88,0.00043835,2]
[407841933,1772825460454,-687.88,0.00043835,2]
[407841934,1772825460464,-688.09394699,0.00043835,2]
[407841935,1772825460474,-500.0,0.00043835,2]
[407841936,1772825460484,-500.0,0.00043835,2]
[407841937,1772825460493,-500.0,0.00043835,2]
[407841938,1772825460503,-500.0,0.00043835,2]
[407841939,1772825460514,-500.0,0.00043835,2]
[407841940,1772825460523,-500.0,0.00043835,2]
[407841941,1772825460533,-566.84376161,0.00043835,2]
[407841942,1772825460543,-1249.95,0.00043835,2]
[407841943,1772825460554,-1249.95,0.00043835,2]
[407841944,1772825460564,-1249.95,0.00043835,2]
[407841945,1772825460574,-1249.95,0.00043835,2]
[407841946,1772825460584,-1249.95,0.00043835,2]
[407841947,1772825460594,-1249.95,0.00043835,2]
[407841948,1772825460604,-1249.95,0.00043835,2]
[407841949,1772825460613,-1249.95,0.00043835,2]
[407841950,1772825460623,-1249.95,0.00043835,2]
[407841951,1772825460633,-1249.95,0.00043835,2]
[407841952,1772825460642,-1249.95,0.00043835,2]
[407841953,1772825460652,-1249.95,0.00043835,2]
[407841954,1772825460661,-1249.95,0.00043835,2]
[407841955,1772825460671,-1249.95,0.00043835,2]
[407841956,1772825460681,-1249.95,0.00043835,2]
[407841957,1772825460691,-1249.95,0.00043835,2]
[407841958,1772825460704,-1249.95,0.00043835,2]
[407841959,1772825460713,-1249.95,0.00043835,2]
[407841960,1772825460722,-1249.95,0.00043835,2]
[407841961,1772825460732,-1249.95,0.00043835,2]
[407841962,1772825460743,-1249.95,0.00043835,2]
[407841963,1772825460751,-1249.95,0.00043835,2]
[407841964,1772825460761,-1249.95,0.00043835,2]
[407841965,1772825460770,-1250.15,0.00043835,2]
[407841966,1772825460780,-500.0,0.00043835,120]
[407841967,1772825460789,-500.0,0.00043835,120]
[407841968,1772825460798,-500.9565902,0.00043835,120]
[407841969,1772825460808,-1000.0,0.00043835,2]
[407841970,1772825460817,-280.0891672,0.00043835,2]
[407841971,1772825460826,-500.0,0.00043835,2]
[407841972,1772825460835,-500.0,0.00043835,2]
[407841973,1772825460844,-500.0,0.00043835,2]
[407841974,1772825460854,-500.0,0.00043835,2]
[407841975,1772825460863,-500.0,0.00043835,2]
[407841976,1772825460873,-500.0,0.00043835,2]
[407841977,1772825460882,-500.0,0.00043835,2]
[407841978,1772825460892,-500.0,0.00043835,2]
[407841979,1772825460902,-613.83938841,0.00043835,2]
[407841980,1772825460912,-7164.15159025,0.00043835,5]
[407841981,1772825460922,-1258.44,0.00043835,2]
[407841982,1772825460931,-1258.44,0.00043835,2]
[407841983,1772825460941,-1258.44,0.00043835,2]
[407841984,1772825460950,-1258.44,0.00043835,2]
[407841985,1772825460959,-1258.44,0.00043835,2]
[407841986,1772825460969,-1258.44,0.00043835,2]
[407841987,1772825460978,-1258.44,0.00043835,2]
[407841988,1772825460988,-1258.44,0.00043835,2]
[407841989,1772825460997,-1258.44,0.00043835,2]
[407841990,1772825461007,-1258.44,0.00043835,2]
[407841991,1772825461017,-1258.44,0.00043835,2]
[407841992,1772825461027,-1258.44,0.00043835,2]
[407841993,1772825461037,-1258.44,0.00043835,2]
[407841994,1772825461048,-1258.44,0.00043835,2]
[407841995,1772825461057,-1258.44,0.00043835,2]
[407841996,1772825461068,-1258.44,0.00043835,2]
[407841997,1772825461077,-1258.44,0.00043835,2]
[407841998,1772825461088,-1258.44,0.00043835,2]
[407841999,1772825461098,-1258.44,0.00043835,2]
[407842000,1772825461107,-1258.44,0.00043835,2]
[407842001,1772825461117,-1258.44,0.00043835,2]
[407842002,1772825461127,-1258.44,0.00043835,2]
[407842003,1772825461137,-1258.44,0.00043835,2]
[407842004,1772825461147,-1258.58423451,0.00043835,2]
[407842005,1772825461157,-500.0,0.00043835,2]
[407842006,1772825461167,-503.7310091,0.00043835,120]
[407842007,1772825461176,-497.49770464,0.00043835,120]
[407842008,1772825461186,-427.13,0.00043835,2]
[407842009,1772825461196,-427.13,0.00043835,2]
[407842010,1772825461207,-427.13,0.00043835,2]
[407842011,1772825461216,-427.13,0.00043835,2]
[407842012,1772825461226,-427.13,0.00043835,2]
[407842013,1772825461236,-427.13,0.00043835,2]
[407842014,1772825461245,-427.13,0.00043835,2]
[407842015,1772825461255,-427.13,0.00043835,2]
[407842016,1772825461264,-427.13,0.00043835,2]
[407842017,1772825461274,-427.13,0.00043835,2]
[407842018,1772825461292,-427.13,0.00043835,2]
[407842019,1772825461302,-427.13,0.00043835,2]
[407842020,1772825461312,-427.13,0.00043835,2]
[407842021,1772825461322,-427.13,0.00043835,2]
[407842022,1772825461332,-427.13,0.00043835,2]
[407842023,1772825461342,-427.13,0.00043835,2]
[407842024,1772825461353,-427.13,0.00043835,2]
[407842025,1772825461363,-427.13,0.00043835,2]
[407842026,1772825461373,-427.13,0.00043835,2]
[407842027,1772825461384,-427.13,0.00043835,2]
[407842028,1772825461395,-427.13,0.00043835,2]
[407842029,1772825461406,-427.13,0.00043835,2]
[407842030,1772825461416,-427.13,0.00043835,2]
[407842031,1772825461426,-427.24393686,0.00043835,2]